Cogmind - Beta 9.1 @@@ ROGUE MODE // 2019.10.31 @ 19:26:41 // Halloween2019/Abominations Player: fartblaster Result: Destroyed by Lesser Abomination with Beam Rifle Performance ------------- Evolutions (1) 500 Regions Visited (2) 400 Robots Destroyed (16) 80 Value Destroyed (769) 769 Prototype IDs (1) 20 Alien Tech Used (0) 0 Bonus (0) 0 TOTAL SCORE: 1769 Bonus ------- None Cogmind --------- Core Integrity 0/400 Matter 295/300 Energy 280/280 System Corruption 1% Temperature Cool (9) Location -9/Materials Parts ------- Power (1) Cooled Ion Engine Propulsion (2) Utility (2) High-capacity Storage Unit Weapon (4) Inventory (12) Small Storage Unit Medium Storage Unit Medium Matter Pod (83) Peak State ------------ Power Light Ion Engine Propulsion Light Treads Light Treads Utility Small Storage Unit Terrain Scanner Weapon Shotgun Flail Inventory Ion Engine EM Pulse Gun Small Laser Assault Rifle Grenade Launcher [Rating: 9] Favorites ----------- Power Light Ion Engine Engine Light Ion Engine Propulsion Light Treads Treads Light Treads Wheel Wheel Utility Small Storage Unit Device Terrain Scanner Storage Small Storage Unit Protection Light Armor Plating Weapon Assault Rifle Energy Gun Small Laser Ballistic Gun Assault Rifle Launcher Grenade Launcher Impact Weapon Flail Build | -11 -10 -9 ------- Run | Scr Mat Mat Slots Evolved 2 | . . 2 Power . | . . . Propulsion . | . . . Utility . | . . . Weapon 2 | . . 2 Parts Attached 31 | 6 12 13 Power 4 | 1 1 2 Engine 4 | 1 1 2 Core . | . . . Reactor . | . . . Propulsion 6 | 2 2 2 Treads 4 | 2 2 . Leg . | . . . Wheel 2 | . . 2 Hover . | . . . Flight . | . . . Utility 5 | 1 1 3 Device 1 | . 1 . Storage 3 | 1 . 2 Processor . | . . . Hackware . | . . . Protection 1 | . . 1 Artifact . | . . . Weapon 16 | 2 8 6 Energy Gun 5 | 1 2 2 Energy Cannon . | . . . Ballistic Gun 5 | 1 3 1 Ballistic Cannon . | . . . Launcher 3 | . 1 2 Special Weapon . | . . . Impact Weapon 3 | . 2 1 Slashing Weapon . | . . . Piercing Weapon . | . . . Special Melee Weapon . | . . . Unidentified Prototypes 1 | . . 1 Parts Lost 11 | . 4 7 Power 1 | . 1 . Propulsion 4 | . 2 2 Utility 2 | . . 2 Weapon 4 | . 1 3 Highest Loss Streak 3 | . 2 3 Average Slot Usage (%) 76 | . 94 49 Engine 9 | . 14 2 Treads 15 | . 26 . Wheel 2 | . . 6 Device 8 | . 11 5 Storage 12 | . 14 11 Protection 1 | . . 3 Energy Gun 5 | . 1 11 Ballistic Gun 14 | . 20 4 Launcher 4 | . 4 5 Naked Turns . | . . . Heaviest Build 44 | 10 15 44 Greatest Support 40 | 40 40 20 Greatest Overweight (x) 13 | . 4 13 Average Overweight (x) . | . . 2 Largest Inventory Capacity 12 | 6 6 12 Average Capacity 6 | 5 6 7 Most Carried 6 | 3 6 5 Average Carried 2 | . 4 1 Final Capacity 12 | 6 6 12 Final Carried 5 | 1 5 3 Class Distribution -------------------- 95% | Mutant 4% | Skirmisher Dominant Class ---------------- Mutant | -10/Materials Mutant | -9/Materials Resources | -11 -10 -9 ----------- Run | Scr Mat Mat Matter Collected 819 | 250 341 228 Remotely . | . . . Salvage Created 608 | . 411 197 Parts 45 | . 35 10 Haulers Intercepted . | . . . Recyclers Shooed . | . . . Parts Field Recycled . | . . . Retrieved Matter . | . . . Parts Self-Destructed . | . . . Prevented . | . . . Kills | -11 -10 -9 ------- Run | Scr Mat Mat Combat Hostiles Destroyed 14 | . 10 4 Guns 13 | . 10 3 Classes Destroyed 5 | . 3 2 Worker 1 | . . 1 Swarmer 1 | . 1 . Grunt 2 | . 1 1 Abomination 11 | . 8 3 Anomaly 1 | . . 1 Best Kill Streak 2 | . 2 2 Combat Bots Only 2 | . 2 1 Max Kills in Single Turn 1 | . 1 1 Gunslinging . | . . . Exploded . | . . . Melee . | . . . Uniques/NPCs Destroyed . | . . . Combat | -11 -10 -9 -------- Run | Scr Mat Mat Damage Taken 1806 | . 1004 802 Core 648 | . 244 404 Absorbed by Shields . | . . . Core Remaining (%) 51 | 100 2 . Volleys Fired 126 | . 86 40 Largest 1 | . 1 1 Hottest 40 | . 40 40 Shots Fired 125 | . 85 40 Gun 125 | . 85 40 Cannon . | . . . Launcher . | . . . Special . | . . . Kinetic 84 | . 70 14 Thermal 41 | . 15 26 Explosive . | . . . Electromagnetic . | . . . Robot Hit Streak 12 | . 12 10 Robot Miss Streak 9 | . 9 4 Penetration Max . | . . . Secondary Targets . | . . . Shots Hit Robots 91 | . 63 28 Core Hits 49 | . 37 12 Critical Hits 2 | . 2 . Critical Kills 1 | . 1 . Critical Parts Destroyed 1 | . 1 . Melee Attacks 9 | . 8 1 Impact 9 | . 8 1 Slashing . | . . . Piercing . | . . . Sneak Attacks 1 | . . 1 Combat Hostiles . | . . . Follow-up Attacks . | . . . Damage Inflicted 1470 | . 1050 420 Guns 1333 | . 956 377 Cannons . | . . . Explosions . | . . . Melee 137 | . 94 43 Ramming . | . . . Kinetic 893 | . 811 82 Thermal 440 | . 145 295 Explosive . | . . . Electromagnetic . | . . . Impact 137 | . 94 43 Slashing . | . . . Piercing . | . . . Highest Corruption 1 | . 1 1 Average Corruption 1 | . 1 1 Corruption Purged . | . . . Effects 11 | . 10 1 Message Errors 4 | . 3 1 Energy Discharges 3 | . 3 . Data Loss (minor) 1 | . 1 . Targeting Errors 2 | . 2 . Weapon Failures 1 | . 1 . Overload Shots . | . . . Overflow Damage 6 | . 6 . Projectiles . | . . . Explosions . | . . . Melee 6 | . 6 . Knockbacks 1 | . 1 . Impact 1 | . 1 . Kinetic . | . . . Secondary . | . . . Self-Inflicted Damage . | . . . Shots . | . . . Rammed . | . . . Targets Rammed . | . . . Kicked . | . . . Crushed . | . . . Highest Temperature 74 | . . 74 Average Temperature 16 | . . 16 Received Heat Transfer 420 | . 204 216 Siege Activations . | . . . Robots Corrupted . | . . . Combat Hostiles . | . . . Parts Fried . | . . . Impact Corruptions 1 | . 1 . Robots Melted . | . . . Combat Hostiles . | . . . Parts Melted . | . . . Heat Transferred 198 | . 66 132 Parts Sabotaged . | . . . Parts Stolen . | . . . Parts Stripped . | . . . Power Chain Reactions . | . . . Missiles Intercepted . | . . . Alert | -11 -10 -9 ------- Run | Scr Mat Mat Peak Influence 22 | . 22 20 Average Influence 7 | . 10 2 Maximum Alert Level . | . . . Low Security (%) 100 | . . . Level 1 . | . . . Level 2 . | . . . Level 3 . | . . . Level 4 . | . . . Level 5 . | . . . High Security . | . . . Max Security . | . . . Squads Dispatched 19 | . 11 8 Investigation 4 | . 2 2 Extermination . | . . . Reinforcement 2 | . 1 1 Assault 13 | . 8 5 Garrison . | . . . Intercept . | . . . Construction Impeded . | . . . Haulers Reinforced . | . . . Stealth | -11 -10 -9 --------- Run | Scr Mat Mat Distress Signals 17 | . 7 10 Communications Jammed . | . . . Distress Signals . | . . . Times Spotted 22 | . 11 11 Peak Tracking Total 3 | . 2 3 Tactical Retreats 2 | . . 2 Traps | -11 -10 -9 ------- Run | Scr Mat Mat Traps Triggered 4 | . 2 2 Indirectly . | . . . Trap Hack Attempts . | . . . Triggered . | . . . Disarmed . | . . . Reprogrammed . | . . . Reused . | . . . Traps Extracted . | . . . Installed . | . . . Triggered . | . . . Machines | -11 -10 -9 ---------- Run | Scr Mat Mat Machines Disabled . | . . . Max in Single Turn . | . . . Machines Sabotaged . | . . . Garrisons Compromised . | . . . Overloaded Fab Kills . | . . . Fab Network Shutdowns . | . . . Hacking | -11 -10 -9 --------- Run | Scr Mat Mat Machines Accessed 1 | . 1 . Terminals 1 | . 1 . Fabricators . | . . . Repair Stations . | . . . Recycling Units . | . . . Scanalyzers . | . . . Garrison Access . | . . . Total Hacks 4 | . 4 . Successful 3 | . 3 . Failed 1 | . 1 . Catastrophic . | . . . Database Lockouts . | . . . Manual . | . . . Terminals 4 | . 4 . Fabricators . | . . . Repair Stations . | . . . Recycling Units . | . . . Scanalyzers . | . . . Garrison Access . | . . . Terminal Hacks 3 | . 3 . Record 3 | . 3 . Fabricator Hacks . | . . . Repair Station Hacks . | . . . Recycling Unit Hacks . | . . . Scanalyzer . | . . . Garrison Access Hacks . | . . . Unauthorized Hacks . | . . . Terminals . | . . . Fabricators . | . . . Repair Stations . | . . . Recycling Units . | . . . Scanalyzers . | . . . Garrison Access . | . . . Data Cores Recovered . | . . . Used . | . . . Hacking Detections . | . . . Full Trace Events . | . . . Feedback Events . | . . . Feedback Blocked . | . . . Robot Schematics Acquired . | . . . Robots Built . | . . . Matter . | . . . Time . | . . . Total Robot Build Rating . | . . . Part Schematics Acquired . | . . . Parts Built . | . . . Matter . | . . . Time . | . . . Total Part Build Rating . | . . . Parts Repaired . | . . . Time . | . . . Parts Recycled . | . . . Recycled Matter . | . . . Retrieved Matter . | . . . Retrieved Components . | . . . Parts Scanalyzed . | . . . Part Schematics Acquired . | . . . Parts Damaged . | . . . Bothacking | -11 -10 -9 ------------ Run | Scr Mat Mat Used RIF Installer . | . . . Robots Hacked . | . . . Non-combat . | . . . Combat . | . . . Robot Hacks Applied . | . . . Relay Couplers Released . | . . . Robots Rewired . | . . . Allies Hacked . | . . . Hacks Repelled . | . . . Allies | -11 -10 -9 -------- Run | Scr Mat Mat Total Allies . | . . . Largest Group . | . . . Highest-Rated Group . | . . . Highest-Rated Ally . | . . . Total Orders . | . . . Ally Attacks . | . . . Total Damage . | . . . Kills . | . . . Allies Corrupted . | . . . Allies Melted . | . . . Intel | -11 -10 -9 ------- Run | Scr Mat Mat Robot Analysis Total . | . . . Derelict Logs Recovered . | . . . Drone Launches . | . . . Drone Recoveries . | . . . Exploration | -11 -10 -9 ------------- Run | Scr Mat Mat Turns Passed 1546 | 118 865 563 Spaces Moved 790 | 70 400 320 Core 129 | 5 6 118 Treads 459 | 65 394 . Legs . | . . . Wheels 202 | . . 202 Hover . | . . . Flight . | . . . Fastest Speed 50 | 50 100 80 Average Speed 150 | 152 160 136 Slowest Speed 700 | 160 250 700 Overloaded Moves . | . . . Propulsion Burnouts . | . . . Robots Hopped . | . . . Cave-ins Triggered . | . . . Exploration Rate (%) 27 | 5 51 26 Regions Visited 2 Branch Regions . Pre-discovered Areas . | . . . Known Exits Taken . | . . . Unknown Exits Taken 2 | 1 1 . Scrap Searched . | . . . Spaces Dug 1 | . 1 . Terrain Destroyed 1 | . 1 . Melee 1 | . 1 . Projectile . | . . . AOE . | . . . Actions | -11 -10 -9 --------- Run | Scr Mat Mat Total 996 | 81 516 399 Wait 20 | . 3 17 Move 788 | 69 399 320 Hop . | . . . Pick Up 19 | 6 7 6 Fast Attach 4 | 1 . 3 Attach 17 | 5 4 8 Detach 2 | . 1 1 Swap 10 | . 8 2 Drop 1 | . . 1 Fire 126 | . 86 40 Melee 9 | . 8 1 Ram . | . . . Kick . | . . . Crush . | . . . Escape Stasis . | . . . Rewire . | . . . Trap . | . . . Miscellaneous . | . . . Route ------- -11/Scrapyard -10/Materials (discovered 2 exits: [*Mat x2]) -9/Materials History --------- Turn | Location | Event 12 | -11/Scrapyard | Discovered new exit (range 15) 119 | -11/Scrapyard | Entered Materials 305 | -10/Materials | Discovered new exit (range 9) 312 | -10/Materials | Build established: Mutant 693 | -10/Materials | Discovered new exit (range 8) 783 | -10/Materials | Core integrity fell below 50% 810 | -10/Materials | Discovered new exit (range 15) 956 | -10/Materials | Core integrity fell below 20% 984 | -10/Materials | Entered another Materials area 984 | -9/Materials | Evolved 2 slots: Weapon x2 1401 | -9/Materials | Core integrity fell below 50% 1531 | -9/Materials | Core integrity fell below 20% 1547 | -9/Materials | Destroyed by Lesser Abomination with Beam Rifle Last Messages --------------- 01519_ U-05 Engineer destroyed. 01519_ G-34 Mercenary overheating. 01520_ G-34 Mercenary heat damages Backup Laser I. 01520_ K-01 Serf heat damages core (-3). 01520_ M-13 Machinist heat damages Lgt. Ion Engine. 01520_ K-01 Serf collects debris. 01520_ G-34 Mercenary overheating. 01521_ G-34 Mercenary heat short circuits Backup Laser I. 01521_ Ice Anomaly freezes M-13 Machinist. 01521_ Ice Anomaly freezes G-34 Mercenary. 01522_ Ice Anomaly freezes M-13 Machinist. 01522_ Ice Anomaly freezes G-34 Mercenary. 01523_ Hungry Anomaly eats Structural Scanner. 01526_ K-01 Serf heat damages core (-2). 01527_ M-13 Machinist system terminally corrupted. 01528_ Forced to warp away. 01530_ ALERT: Dispatching additional forces to engage threats. 01531_ Lgt. Armor Plating destroyed. 01537_ Sml. Laser destroyed. 01541_ Wheel destroyed. Map ----- +----------------------------------------------------+ | ?????????????????????????????????? | | ?????????????????????????????????? | | ?????????????????????????????????? | | ?????????????????????????????????? | | ?????????????????????????????????? | | ?????????????????????????????????? | | ?????????????????????????????????? | | ?????????????????????????????????? | | ??????????????????????????????? % | | ??????????????????????????????? | | ??????????????????????????????? % | | ??????????????????????????????? | | ??????????????????????????????? % | | ??????????????????????????????? % | | ????????????????????????#?????? % | | ???????????????????????#?#?? ?? | | ?????????????????????? #??? #? | | ????????????????????? # #?# # | | ??????###############/## %%#?# # | | ??????# T %% #?# + | | ??????# # # # | | ??????# n % % % " " # | | ???#### A" % #?# # | | ???# "" % #?# # | | ???# %" " " # | | ???# @% A % " " # | | ???# % " # # | | ???# % ############# "?# # | | ???# ####+####????????????? "?# # | | ???#????????? ????? ??? ???????# # | | ???# ???????? #????? ??????????# # | | ???# ???????? #????????????? ??# # | | ???# ???????? #?????????? ???# # | | ???# ########+#??????? " ### # | | ???? """ #??????" " #?# # | | ????# "T" #??????" " " # # | | ????# #?????? " " # " | | ????# #????###""" " # " | | ????# ###### """" "?" " | | ??### ## " # " " | | ??#" ## """ " # " " | | ??#" ## """ " " " " | | ??#"" ## """ " # " " | | ??### = ## " " " " | | ????# = + """ " " " " | | ???#####+##### # """ " " " " | | ???# #??# # """ " " " " | | ???# """" #??# # " " " " | | ???# """" #??# #######""" " " " | | ???# """" #### # ^ " " " " | +----------------------------------------------------+ Best States ------------- Heat Dissipation 28 Energy Generation 14 Energy Capacity 280 Matter Stores 300 Matter Capacity 300 Sight Range 16 Terrain Scan Range 14 Terrain Scan Density 10 Armor Coverage 150 Evasion (%) 44 Recoil Reduction 2 Item Schematics ----------------- None Robot Schematics ------------------ None Fabricated ------------ Nothing Alien Tech Used ----------------- None Achievements -------------- None Challenges ------------ None Game ------ Seed OverloadSwarmMatter Manual? 0 Play Time 00:30:17 Cumulative 4.4 hours Start 2019.10.31 @ 18:53:46 End 2019.10.31 @ 19:26:41 Sessions 1 Manual Loads 0 Difficulty Rogue Special Mode Halloween2019/Abominations Game No. 15 Rogue 15 Adventurer 0 Explorer 0 Win Type - Total 0 Types 0/0/0/0/0/0/0 Lore% 1 Gallery% 9 Achievement% 5 Wizard Run 0 Options --------- ASCII 0 Keyboard 1 Movement Numpad Keybinds 0 Fullscreen 1 Font 18/SmallcapsGlow Map View 76x50 Tactical HUD 1 Map Filters NONE Filters NONE Steam 1 RUN: bf588905-51f9-457b-839f-ca111a6a25fd